[Event "Champions Showdown Kings Blitz 2019-E"]
[Site "Saint Louis"]
[Date "2019.02.22"]
[Round "4"]
[White "Shankland, Samuel"]
[Black "Rapport, Richard"]
[Result "1-0"]
[ECO "C44"]
[WhiteElo "2731"]
[BlackElo "2735"]
[Annotator "ChessBase"]
[PlyCount "91"]
[EventDate "2019.02.09"]
[EventType "match"]
[EventCountry "USA"]
[SourceTitle "playchess.com"]
[Source "ChessBase"]
[SourceQuality "1"]
[TimeControl "900+10"]

1. d4 {[%emt 0:12:06]} d6 {[%emt 0:12:06]} 2. e4 {[%emt 0:00:10]} Nf6 {[%emt 0:00:09]} 3. Bd3 {[%emt 0:00:09]} Nc6 {[%emt 0:00:12]} 4. Nf3 {[%emt 0:00:11]} e5 {[%emt 0:00:11]} 5. c3 {[%emt 0:00:09]} Be7 {[%emt 0:00:13]} 6. O-O {[%emt 0:00:10]} O-O {[%emt 0:00:10]} 7. a3 {[%emt 0:00:10]} a5 {[%emt 0:00:16]} 8. h3 {[%emt 0:00:12]} Re8 {[%emt 0:00:13]} 9. Re1 {[%emt 0:00:16]} Bf8 {[%emt 0:00:11]} 10. Nbd2 {[%emt 0:00:16]} Bd7 {[%emt 0:00:10]} 11. Nf1 {[%emt 0:00:11]} a4 {[%emt 0:00:09]} 12. Ng3 Na5 13. Be3 {[%emt 0:00:23]} c5 {[%emt 0:00:25]} 14. Nd2 {[%emt 0:00:27]} b5 {[%emt 0:00:13]} 15. f4 {[%emt 0:00:22]} cxd4 {[%emt 0:00:15]} 16. cxd4 {[%emt 0:00:09]} exd4 {[%emt 0:00:36]} 17. Bxd4 {[%emt 0:00:09]} g6 {[%emt 0:00:14]} 18. Rc1 {[%emt 0:00:10]} Bg7 {[%emt 0:00:10]} 19. Bc3 {[%emt 0:00:22]} Rc8 {[%emt 0:00:11]} 20. Nf3 {[%emt 0:00:15]} Nb3 {[%emt 0:00:11]} 21. Rc2 {[%emt 0:00:08]} Nc5 {[%emt 0:00:28]} 22. Rd2 {[%emt 0:00:09]} Nb3 {[%emt 0:00:10]} 23. Rde2 {[%emt 0:00:09]} Bh6 {[%emt 0:00:13]} 24. f5 {[%emt 0:00:29]} Bg7 {[%emt 0:00:12]} 25. Bc2 {[%emt 0:00:23]} Qb6+ {[%emt 0:00:19]} 26. Kh1 {[%emt 0:00:09]} Nc5 {[%emt 0:00:10]} 27. e5 {[%emt 0:00:15]} dxe5 {[%emt 0:00:09]} 28. Nxe5 {[%emt 0:00:09]} Red8 {[%emt 0:00:18]} 29. Qc1 {[%emt 0:00:19]} Be8 {[%emt 0:00:14]} 30. fxg6 {[%emt 0:00:23]} hxg6 {[%emt 0:00:08]} 31. Qg5 {[%emt 0:00:14]} Nd5 {[%emt 0:00:09]} 32. Nxg6 {[%emt 0:00:16]} fxg6 {[%emt 0:00:10]} 33. Rxe8+ {[%emt 0:00:12]} Rxe8 {[%emt 0:00:09]} 34. Qxd5+ {[%emt 0:00:09]} Kh8 {[%emt 0:00:12]} 35. Rxe8+ {[%emt 0:00:12]} Rxe8 {[%emt 0:00:11]} 36. Qf7 {[%emt 0:00:17]} Rg8 {[%emt 0:00:10]} 37. Bxg6 {[%emt 0:00:13]} Qe6 {[%emt 0:00:08]} 38. Bxg7+ {[%emt 0:00:12]} Rxg7 {[%emt 0:00:09]} 39. Qf8+ {[%emt 0:00:09]} Qg8 {[%emt 0:00:09]} 40. Qf6 {[%emt 0:00:14]} Nd7 {[%emt 0:01:29]} 41. Qh4+ {[%emt 0:00:09]} Rh7 {[%emt 0:00:09]} 42. Bxh7 {[%emt 0:00:09]} Qxh7 {[%emt 0:00:09]} 43. Qd8+ {[%emt 0:00:09]} Qg8 {[%emt 0:00:09]} 44. Qxd7 {[%emt 0:00:23]} Qxg3 {[%emt 0:00:09]} 45. Qxb5 {[%emt 0:00:08]} Qf4 {[%emt 0:00:18]} 46. Qh5+ {[%emt 0:00:09]} 1-0

[Event "Champions Showdown Kings Blitz 2019-E"]
[Site "Saint Louis"]
[Date "2019.02.22"]
[Round "6"]
[White "Shankland, Samuel"]
[Black "Rapport, Richard"]
[Result "1-0"]
[ECO "E18"]
[WhiteElo "2731"]
[BlackElo "2735"]
[Annotator "RC"]
[PlyCount "115"]
[EventDate "2019.02.09"]
[EventType "match"]
[EventCountry "USA"]
[SourceTitle "playchess.com"]
[Source "ChessBase"]
[SourceQuality "1"]
[TimeControl "900+10"]

1. d4 {[%emt 0:12:06]} Nf6 {[%emt 0:12:06]} 2. c4 e6 3. Nf3 {[%emt 0:00:18]} b6 {[%emt 0:00:18]} 4. g3 {[%emt 0:00:09]} Bb7 {[%emt 0:00:08]} 5. Bg2 Bb4+ 6. Bd2 {[%emt 0:00:17]} Be7 {[%emt 0:00:19]} 7. Nc3 {[%emt 0:00:10]} O-O {[%emt 0:00:10]} 8. Bf4 {[%emt 0:00:10]} Na6 {[%emt 0:00:22]} 9. O-O {[%emt 0:00:10]} Ne4 {[%emt 0:00:09]} 10. Qa4 {[%emt 0:00:17]} Nxc3 {[%emt 0:00:12]} 11. bxc3 {[%emt 0:00:09]} Nb8 {[%emt 0:00:09]} 12. Rad1 {[%emt 0:00:09]} d6 {[%emt 0:00:10]} 13. Qc2 {[%emt 0:00:09]} f5 {[%emt 0:00:20]} 14. c5 {[%emt 0:00:26]} Be4 {[%emt 0:00:18]} 15. Qb3 {[%emt 0:00:09]} Qd7 {[%emt 0:00:11]} 16. cxd6 {[%emt 0:00:18]} cxd6 {[%emt 0:00:10]} 17. d5 {[%emt 0:00:09]} exd5 {[%emt 0:00:22]} 18. Nd4 {[%emt 0:00:32]} Kh8 {[%emt 0:00:19]} 19. f3 {[%emt 0:00:09]} Na6 {[%emt 0:00:13]} 20. fxe4 {[%emt 0:00:11]} dxe4 {[%emt 0:00:09]} 21. Qe6 {[%emt 0:00:10]} Qxe6 {[%emt 0:00:12]} 22. Nxe6 {[%emt 0:00:09]} Rf6 {[%emt 0:00:08]} 23. Nd4 {[%emt 0:00:12]} Rf7 {[%emt 0:00:12]} 24. Nb5 {[%emt 0:00:13]} d5 {[%emt 0:00:16]} 25. Rxd5 {[%emt 0:00:12]} Rc8 {[%emt 0:00:09]} 26. Be5 {[%emt 0:00:14]} Kg8 {[%emt 0:00:10]} 27. Bd4 {[%emt 0:00:17]} g6 {[%emt 0:00:09]} 28. Nxa7 {[%emt 0:00:14]} Ra8 {[%emt 0:00:11]} 29. Nc6 {[%emt 0:00:11]} Bc5 {[%emt 0:00:09]} 30. g4 {[%emt 0:00:17]} Rc7 {[%emt 0:00:13]} 31. Ne5 {[%emt 0:00:12]} Bxd4+ {[%emt 0:00:15]} 32. cxd4 Nb4 33. Rd6 {[%emt 0:00:19]} Nc2 {[%emt 0:00:19]} 34. gxf5 {[%emt 0:00:11]} Ne3 {[%emt 0:00:10]} 35. fxg6 {[%emt 0:00:13]} Nxf1 {[%emt 0:00:10]} 36. Bxe4 {[%emt 0:00:21]} Rf8 {[%emt 0:00:09]} 37. gxh7+ {[%emt 0:00:11]} Kg7 {[%emt 0:00:09]} 38. h8=Q+ {[%emt 0:00:19]} Rxh8 {[%emt 0:00:12]} 39. Kxf1 {[%emt 0:00:13]} Rxh2 {[%emt 0:00:10]} 40. Rd7+ {[%emt 0:00:11]} Rxd7 41. Nxd7 {[%emt 0:00:09]} Rh4 {[%emt 0:00:19]} 42. Bd3 {[%emt 0:00:10]} Rxd4 {[%emt 0:00:10]} 43. Nxb6 {[%emt 0:00:08]} Kf6 {[%emt 0:00:12]} 44. Nc4 {[%emt 0:00:10]} Rd8 {[%emt 0:00:12]} 45. a4 {[%emt 0:00:09]} Ke6 {[%emt 0:00:10]} 46. a5 {[%emt 0:00:10]} Rf8+ {[%emt 0:00:11]} 47. Ke1 {[%emt 0:00:09]} Kd5 {[%emt 0:00:09]} 48. Kd2 {[%emt 0:00:09]} Kd4 {[%emt 0:00:08]} 49. e3+ {[%emt 0:00:09]} Kc5 {[%emt 0:00:09]} 50. Kc3 {[%emt 0:00:09]} Kb5 {[%emt 0:00:09]} 51. e4 {[%emt 0:00:09]} Kc5 {[%emt 0:00:11]} 52. a6 {[%emt 0:00:13]} Rc8 {[%emt 0:00:09]} 53. Nd2 {[%emt 0:00:17]} Kb6+ {[%emt 0:00:12]} 54. Kd4 {[%emt 0:00:09]} Rd8+ {[%emt 0:00:08]} 55. Ke3 {[%emt 0:00:09]} Kc5 {[%emt 0:00:09]} 56. Nf3 {[%emt 0:00:11]} Re8 {[%emt 0:00:12]} 57. e5 {[%emt 0:00:09]} Kd5 {[%emt 0:00:09]} 58. Be4+ {[%emt 0:00:09]} 1-0

[Event "Champions Showdown Kings Blitz 2019-E"]
[Site "Saint Louis"]
[Date "2019.02.22"]
[Round "7"]
[White "Rapport, Richard"]
[Black "Shankland, Samuel"]
[Result "0-1"]
[ECO "D03"]
[WhiteElo "2735"]
[BlackElo "2731"]
[Annotator "ChessBase"]
[PlyCount "149"]
[EventDate "2019.02.09"]
[EventType "match"]
[EventCountry "USA"]
[SourceTitle "playchess.com"]
[Source "ChessBase"]
[SourceQuality "1"]
[TimeControl "900+10"]

1. d4 Nf6 2. c3 {[%emt 0:12:15]} g6 {[%emt 0:12:16]} 3. Bg5 {[%emt 0:00:09]} Bg7 {[%emt 0:00:08]} 4. Nd2 {[%emt 0:00:09]} O-O {[%emt 0:00:11]} 5. e3 {[%emt 0:00:09]} d5 {[%emt 0:00:11]} 6. Ngf3 {[%emt 0:00:12]} Nbd7 {[%emt 0:00:08]} 7. h3 {[%emt 0:00:09]} Re8 {[%emt 0:00:14]} 8. Bf4 {[%emt 0:00:09]} Nh5 {[%emt 0:00:09]} 9. Bh2 e5 10. dxe5 {[%emt 0:00:39]} Nxe5 {[%emt 0:00:18]} 11. Be2 {[%emt 0:00:09]} Nxf3+ {[%emt 0:00:13]} 12. Nxf3 {[%emt 0:00:10]} c6 {[%emt 0:00:16]} 13. O-O {[%emt 0:00:11]} Qb6 {[%emt 0:00:09]} 14. Qb3 {[%emt 0:00:10]} Nf6 {[%emt 0:00:12]} 15. Nd2 {[%emt 0:00:15]} Be6 {[%emt 0:00:13]} 16. Rfd1 {[%emt 0:00:21]} Nd7 {[%emt 0:00:13]} 17. a4 {[%emt 0:00:14]} Nc5 {[%emt 0:00:20]} 18. Qa3 {[%emt 0:00:15]} a5 {[%emt 0:00:09]} 19. Bd6 {[%emt 0:00:13]} Nd7 {[%emt 0:00:17]} 20. Qb3 {[%emt 0:00:10]} Bf5 {[%emt 0:00:19]} 21. Qxb6 {[%emt 0:01:03]} Nxb6 {[%emt 0:00:09]} 22. Bc7 {[%emt 0:00:10]} Nd7 {[%emt 0:00:17]} 23. Nf3 {[%emt 0:00:11]} Nc5 {[%emt 0:00:10]} 24. Nd4 {[%emt 0:00:10]} Bd7 {[%emt 0:00:17]} 25. Bd6 {[%emt 0:00:20]} Ne4 {[%emt 0:00:15]} 26. Bf4 {[%emt 0:00:12]} h6 {[%emt 0:00:22]} 27. Nb3 {[%emt 0:00:09]} b6 {[%emt 0:00:19]} 28. Nd4 {[%emt 0:00:12]} Rec8 {[%emt 0:00:20]} 29. Bd3 {[%emt 0:00:12]} Nc5 {[%emt 0:00:12]} 30. Bc2 {[%emt 0:00:09]} Ne6 {[%emt 0:00:10]} 31. Nxe6 Bxe6 32. Bb3 {[%emt 0:00:25]} f5 {[%emt 0:00:21]} 33. Rac1 {[%emt 0:00:12]} Kf7 {[%emt 0:00:09]} 34. h4 {[%emt 0:00:11]} Bf6 {[%emt 0:00:14]} 35. Bxh6 {[%emt 0:00:10]} Bxh4 {[%emt 0:00:09]} 36. Bf4 {[%emt 0:00:10]} Bf6 {[%emt 0:00:09]} 37. Kf1 {[%emt 0:00:12]} g5 {[%emt 0:00:14]} 38. Bg3 {[%emt 0:00:08]} Ra7 {[%emt 0:00:18]} 39. Rd2 {[%emt 0:00:13]} Re7 {[%emt 0:00:16]} 40. c4 {[%emt 0:00:11]} d4 {[%emt 0:00:15]} 41. Rd3 {[%emt 0:00:46]} c5 {[%emt 0:00:19]} 42. f4 {[%emt 0:00:10]} dxe3 {[%emt 0:00:18]} 43. Rxe3 {[%emt 0:00:09]} Bxb2 {[%emt 0:00:10]} 44. Rce1 {[%emt 0:00:18]} Bd4 {[%emt 0:00:12]} 45. fxg5 {[%emt 0:00:11]} Bxe3 {[%emt 0:00:10]} 46. Rxe3 {[%emt 0:00:09]} Kg6 {[%emt 0:00:13]} 47. Bf4 {[%emt 0:00:11]} Rce8 {[%emt 0:00:12]} 48. Kf2 {[%emt 0:00:10]} Bg8 {[%emt 0:00:32]} 49. Rh3 {[%emt 0:00:09]} Rh7 {[%emt 0:00:15]} 50. Rd3 {[%emt 0:00:10]} Rhe7 {[%emt 0:00:13]} 51. Rd2 {[%emt 0:00:13]} Re4 {[%emt 0:00:10]} 52. g3 {[%emt 0:00:09]} Bxc4 {[%emt 0:00:12]} 53. Bd1 {[%emt 0:00:09]} Bf7 {[%emt 0:00:12]} 54. Bf3 {[%emt 0:00:16]} Rd4 {[%emt 0:00:09]} 55. Rb2 {[%emt 0:00:09]} Rb4 {[%emt 0:00:11]} 56. Rd2 {[%emt 0:00:08]} Rxa4 {[%emt 0:00:10]} 57. Bc6 {[%emt 0:00:09]} Rd4 {[%emt 0:00:14]} 58. Rxd4 {[%emt 0:00:10]} cxd4 {[%emt 0:00:09]} 59. Bxe8 {[%emt 0:00:09]} Bxe8 {[%emt 0:00:09]} 60. Bc7 {[%emt 0:00:08]} a4 {[%emt 0:00:10]} 61. Bxb6 {[%emt 0:00:09]} d3 {[%emt 0:00:10]} 62. Ke3 {[%emt 0:00:12]} Bb5 {[%emt 0:00:12]} 63. Bd8 {[%emt 0:00:09]} a3 {[%emt 0:00:09]} 64. Bf6 {[%emt 0:00:09]} a2 {[%emt 0:00:09]} 65. Kd2 {[%emt 0:00:08]} Bc4 {[%emt 0:00:09]} 66. Ke3 {[%emt 0:00:09]} Kh5 {[%emt 0:00:09]} 67. Kd2 {[%emt 0:00:15]} Kg4 {[%emt 0:00:09]} 68. g6 {[%emt 0:00:09]} Kxg3 {[%emt 0:00:11]} 69. g7 {[%emt 0:00:09]} f4 {[%emt 0:00:09]} 70. Be5 {[%emt 0:00:12]} Kg4 {[%emt 0:00:11]} 71. g8=Q+ {[%emt 0:00:12]} Bxg8 {[%emt 0:00:09]} 72. Kxd3 {[%emt 0:00:08]} f3 {[%emt 0:00:09]} 73. Ke3 {[%emt 0:00:14]} Bc4 {[%emt 0:00:11]} 74. Kf2 {[%emt 0:00:14]} Kf5 {[%emt 0:00:09]} 75. Bc3 {[%emt 0:00:14]} 0-1

[Event "Champions Showdown Kings Blitz 2019-E"]
[Site "Saint Louis"]
[Date "2019.02.22"]
[Round "8"]
[White "Shankland, Samuel"]
[Black "Rapport, Richard"]
[Result "1/2-1/2"]
[ECO "E81"]
[WhiteElo "2731"]
[BlackElo "2735"]
[Annotator "ChessBase"]
[PlyCount "112"]
[EventDate "2019.02.09"]
[EventType "match"]
[EventCountry "USA"]
[SourceTitle "playchess.com"]
[Source "ChessBase"]
[SourceQuality "1"]
[TimeControl "900+10"]

1. d4 {[%emt 0:12:06]} Nf6 2. c4 g6 {[%emt 0:12:15]} 3. Nc3 {[%emt 0:00:19]} Bg7 {[%emt 0:00:09]} 4. e4 {[%emt 0:00:08]} d6 {[%emt 0:00:09]} 5. f3 {[%emt 0:00:10]} c6 {[%emt 0:00:12]} 6. Be3 {[%emt 0:00:15]} a6 {[%emt 0:00:09]} 7. c5 {[%emt 0:00:09]} O-O {[%emt 0:00:11]} 8. Nge2 {[%emt 0:00:11]} b5 {[%emt 0:00:09]} 9. cxd6 {[%emt 0:00:13]} exd6 {[%emt 0:00:09]} 10. Nf4 {[%emt 0:00:13]} Nbd7 {[%emt 0:00:12]} 11. Be2 {[%emt 0:00:10]} Re8 {[%emt 0:00:11]} 12. Qd2 {[%emt 0:00:10]} Nb6 {[%emt 0:00:13]} 13. O-O {[%emt 0:00:13]} Bb7 {[%emt 0:00:16]} 14. b3 {[%emt 0:00:11]} Qe7 {[%emt 0:00:30]} 15. Bf2 {[%emt 0:00:26]} Qf8 {[%emt 0:00:12]} 16. a4 {[%emt 0:00:16]} b4 {[%emt 0:00:11]} 17. Nd1 {[%emt 0:00:12]} a5 {[%emt 0:00:09]} 18. Nb2 {[%emt 0:00:11]} Nfd7 {[%emt 0:00:16]} 19. Rac1 {[%emt 0:00:11]} Rac8 {[%emt 0:00:14]} 20. Rfd1 {[%emt 0:00:20]} Red8 {[%emt 0:00:21]} 21. Bh4 {[%emt 0:00:16]} Re8 {[%emt 0:00:09]} 22. Bg3 {[%emt 0:00:16]} Nf6 {[%emt 0:00:11]} 23. Bf2 {[%emt 0:00:24]} Nfd7 {[%emt 0:00:09]} 24. Be3 {[%emt 0:00:09]} Nf6 {[%emt 0:00:10]} 25. Nbd3 {[%emt 0:00:16]} Nfd7 {[%emt 0:00:12]} 26. h4 {[%emt 0:00:13]} c5 {[%emt 0:00:24]} 27. Nb2 {[%emt 0:00:10]} cxd4 {[%emt 0:00:10]} 28. Bxd4 {[%emt 0:00:09]} Nc5 {[%emt 0:00:17]} 29. Qe3 {[%emt 0:00:26]} Bh6 {[%emt 0:00:21]} 30. Bxc5 {[%emt 0:00:39]} Rxc5 {[%emt 0:00:11]} 31. Rxc5 {[%emt 0:00:09]} dxc5 {[%emt 0:00:09]} 32. Bc4 {[%emt 0:00:19]} Rd8 {[%emt 0:00:20]} 33. Rxd8 Qxd8 34. g3 {[%emt 0:00:40]} Bg7 {[%emt 0:00:23]} 35. e5 {[%emt 0:00:12]} Qd4 {[%emt 0:00:20]} 36. Qxd4 {[%emt 0:00:10]} cxd4 {[%emt 0:00:09]} 37. e6 {[%emt 0:00:16]} Nxc4 {[%emt 0:00:25]} 38. exf7+ {[%emt 0:00:14]} Kxf7 {[%emt 0:00:14]} 39. Nxc4 {[%emt 0:00:09]} Bxf3 {[%emt 0:00:10]} 40. Nxa5 {[%emt 0:00:09]} Bd1 {[%emt 0:00:13]} 41. Kf2 {[%emt 0:00:12]} h6 {[%emt 0:00:23]} 42. Ke1 {[%emt 0:00:09]} Bf3 {[%emt 0:00:12]} 43. Nc4 {[%emt 0:00:18]} g5 {[%emt 0:00:11]} 44. hxg5 {[%emt 0:00:09]} hxg5 {[%emt 0:00:09]} 45. Nd3 {[%emt 0:00:09]} Ke6 {[%emt 0:00:11]} 46. Nxb4 {[%emt 0:00:11]} Bf8 {[%emt 0:00:11]} 47. Nd3 {[%emt 0:00:09]} Be4 {[%emt 0:00:15]} 48. Kd2 {[%emt 0:00:10]} Kd7 {[%emt 0:00:14]} 49. a5 {[%emt 0:00:10]} Kc7 {[%emt 0:00:10]} 50. b4 {[%emt 0:00:10]} Kc6 {[%emt 0:00:10]} 51. a6 {[%emt 0:00:16]} Kb5 {[%emt 0:00:09]} 52. Nce5 {[%emt 0:00:11]} Kxa6 {[%emt 0:00:13]} 53. Nd7 {[%emt 0:00:09]} Bxd3 {[%emt 0:00:13]} 54. Kxd3 {[%emt 0:00:10]} Bxb4 {[%emt 0:00:09]} 55. Kxd4 {[%emt 0:00:08]} g4 {[%emt 0:00:10]} 56. Ne5 {[%emt 0:00:09]} Be1 1/2-1/2